fUSD/lending_fUSD_20240701
["ID","MTS","AMOUNT","RATE_DAILY","PERIOD"]
[330803738,1719810651508,-501.0484726,0.00021917,4]
[330803739,1719810651518,-500.52437164,0.00021917,4]
[330803740,1719810651528,-501.41676776,0.00021917,4]
[330803741,1719810651537,-500.0,0.00021917,4]
[330803742,1719810651546,-438.53367102,0.00021917,4]
[330803743,1719810651556,-500.0,0.00021917,4]
[330803744,1719810651566,-500.73150174,0.00021917,4]
[330803745,1719810651575,-503.4552669,0.00021917,4]
[330803746,1719810651584,-500.0,0.00021917,4]
[330803747,1719810651593,-500.0,0.00021917,4]
[330803748,1719810651603,-500.0,0.00021917,4]
[330803749,1719810651613,-500.36640066,0.00021917,4]
[330803750,1719810651622,-155.90703772,0.00021917,4]
[330803751,1719810651632,-501.03867275,0.00021917,4]
[330803752,1719810651642,-500.0,0.00021917,4]
[330803753,1719810651652,-500.92915099,0.00021917,4]
[330803754,1719810651662,-502.3305478,0.00021917,4]
[330803755,1719810651671,-502.31903199,0.00021917,4]
[330803756,1719810651682,-513.39808749,0.00021917,4]
[330803757,1719810651692,-524.43727068,0.00021917,4]
[330803758,1719810651702,-151.0,0.00021917,2]
[330803759,1719810651711,-151.0,0.00021917,2]
[330803760,1719810651721,-500.0,0.00021917,4]
[330803761,1719810651731,-500.0,0.00021917,4]
[330803762,1719810651740,-151.0,0.00021917,2]
[330803763,1719810651752,-321.67243914,0.00021917,4]
[330803764,1719810651762,-151.0,0.00021917,2]
[330803765,1719810651772,-502.55211675,0.00021917,4]
[330803766,1719810651781,-502.10659614,0.00021917,4]
[330803767,1719810651791,-500.0,0.00021917,4]
[330803768,1719810651801,-500.56125969,0.00021917,4]
[330803769,1719810651811,-500.0,0.00021917,4]
[330803770,1719810651823,-645.85647658,0.00021917,4]
[330803771,1719810651833,-151.0,0.00021917,2]
[330803772,1719810651842,-151.0,0.00021917,2]
[330803773,1719810651851,-151.0,0.00021917,2]
[330803774,1719810651862,-151.0,0.00021917,2]
[330803775,1719810651871,-589.90656472,0.00021917,4]
[330803776,1719810651880,-500.0,0.00021917,4]
[330803777,1719810651891,-501.09803184,0.00021917,4]
[330803778,1719810651901,-500.90350341,0.00021917,4]
[330803779,1719810651910,-503.57583019,0.00021917,4]
[330803780,1719810651920,-500.0,0.00021917,4]
[330803781,1719810651929,-282.96870349,0.00021917,4]
[330803782,1719810651939,-502.45357077,0.00021917,4]
[330803783,1719810651949,-165.28584178,0.00021917,4]
[330803784,1719810651959,-500.0,0.00021917,4]
[330803785,1719810651973,-500.0,0.00021917,4]
[330803786,1719810651982,-260.48471099,0.00021917,4]
[330803787,1719810651992,-151.0,0.00021917,2]
[330803788,1719810652002,-153.2942405,0.00021917,4]
[330803789,1719810652012,-151.0,0.00021917,2]
[330803790,1719810652021,-151.0,0.00021917,2]
[330803791,1719810652031,-151.0,0.00021917,2]
[330803792,1719810652044,-500.0,0.00021917,4]
[330803793,1719810652054,-591.87360539,0.00021917,4]
[330803794,1719810652063,-151.0,0.00021917,2]
[330803795,1719810652072,-500.0,0.00021917,4]
[330803796,1719810652082,-500.48086096,0.00021917,4]
[330803797,1719810652091,-151.0,0.00021917,2]
[330803798,1719810652102,-151.0,0.00021917,2]
[330803799,1719810652111,-500.0,0.00021917,4]
[330803800,1719810652121,-500.0,0.00021917,4]
[330803801,1719810652131,-151.0,0.00021917,2]
[330803802,1719810652141,-500.0,0.00021917,4]
[330803803,1719810652150,-456.96421152,0.00021917,4]
[330803804,1719810652160,-618.28335881,0.00021917,4]
[330803805,1719810652169,-500.0,0.00021917,4]
[330803806,1719810652180,-307.87323539,0.00021917,4]
[330803807,1719810652189,-500.0,0.00021917,4]
[330803808,1719810652199,-500.0,0.00021917,4]
[330803809,1719810652209,-500.0,0.00021917,4]
[330803810,1719810652219,-500.0,0.00021917,4]
[330803811,1719810652228,-599.98903703,0.00021917,4]
[330803812,1719810652238,-500.0,0.00021917,4]
[330803813,1719810652248,-503.9177831,0.00021917,4]
[330803814,1719810652257,-500.0,0.00021917,4]
[330803815,1719810652268,-500.0,0.00021917,4]
[330803816,1719810652278,-301.66437389,0.00021917,4]
[330803817,1719810652439,-500.0,0.00021917,4]
[330803818,1719810652448,-184.15,0.00021917,4]
[330803819,1719810652458,-500.0,0.00021917,4]
[330803820,1719810652468,-500.0,0.00021917,4]
[330803821,1719810652477,-501.02416304,0.00021917,4]
[330803822,1719810652486,-500.0,0.00021917,4]
[330803823,1719810652495,-454.32562614,0.00021917,4]
[330803824,1719810652505,-353.906177,0.00021917,2]
[330803825,1719810652515,-304.88086946,0.00021917,4]
[330803826,1719810652524,-500.0,0.00021917,4]
[330803827,1719810652533,-500.0,0.00021917,4]
[330803828,1719810652543,-500.0,0.00021917,4]
[330803829,1719810652552,-425.7,0.00021917,4]
[330803830,1719810652561,-304.68442577,0.00021917,4]
[330803831,1719810652570,-353.906177,0.00021917,2]
[330803832,1719810652579,-353.906177,0.00021917,2]
[330803833,1719810652589,-500.27127943,0.00021917,4]
[330803834,1719810652598,-353.906177,0.00021917,2]
[330803835,1719810652607,-353.906177,0.00021917,2]
[330803836,1719810652616,-263.07323342,0.00021917,4]
[330803837,1719810652624,-500.0,0.00021917,4]
[330803838,1719810652633,-500.0,0.00021917,4]
[330803839,1719810652643,-634.33,0.00021917,4]
[330803840,1719810652652,-610.00107024,0.00021917,4]
[330803841,1719810652661,-304.58613652,0.00021917,4]
[330803842,1719810652670,-500.0,0.00021917,4]
[330803843,1719810652679,-501.53103677,0.00021917,4]
[330803844,1719810652688,-500.0,0.00021917,4]
[330803845,1719810652697,-500.0,0.00021917,4]
[330803846,1719810652706,-500.0,0.00021917,4]
[330803847,1719810652715,-500.0,0.00021917,4]
[330803848,1719810652724,-500.0,0.00021917,4]
[330803849,1719810652733,-500.0,0.00021917,4]
[330803850,1719810652742,-500.0,0.00021917,4]
[330803851,1719810652752,-500.0,0.00021917,4]
[330803852,1719810652762,-583.36,0.00021917,4]
[330803853,1719810652772,-500.28641672,0.00021917,4]
[330803854,1719810652781,-500.0,0.00021917,4]
[330803855,1719810652791,-500.66370863,0.00021917,4]
[330803856,1719810652801,-500.0,0.00021917,4]
[330803857,1719810652810,-500.0,0.00021917,4]
[330803858,1719810652820,-500.0,0.00021917,4]
[330803859,1719810652829,-263.31,0.00021917,4]
[330803860,1719810652838,-617.28939295,0.00021917,4]
[330803861,1719810652848,-500.0,0.00021917,4]
[330803862,1719810652857,-500.0,0.00021917,4]
[330803863,1719810652868,-304.58616939,0.00021917,4]
[330803864,1719810652877,-227.22,0.00021917,4]
[330803865,1719810652887,-500.0,0.00021917,4]
[330803866,1719810652896,-500.7249686,0.00021917,4]
[330803867,1719810652905,-500.0,0.00021917,4]
[330803868,1719810652914,-500.0,0.00021917,4]
[330803869,1719810652923,-500.0,0.00021917,4]
[330803870,1719810652932,-500.0,0.00021917,4]
[330803871,1719810652942,-500.0,0.00021917,4]
[330803872,1719810652951,-245.61,0.00021917,4]
[330803873,1719810652962,-500.0,0.00021917,4]
[330803874,1719810652973,-208.6356706,0.00021917,4]
[330803875,1719810652982,-501.89321645,0.00021917,4]
[330803876,1719810652991,-200.02991677,0.00021917,4]
[330803877,1719810653000,-500.0,0.00021917,4]
[330803878,1719810653010,-500.0,0.00021917,4]
[330803879,1719810653019,-500.0,0.00021917,4]
[330803880,1719810653029,-500.0,0.00021917,4]
[330803881,1719810653040,-500.0,0.00021917,4]
[330803882,1719810653049,-501.6197,0.00021917,4]
[330803883,1719810653059,-500.0,0.00021917,4]
[330803884,1719810653068,-534.23353879,0.00021917,4]
[330803885,1719810653078,-151.0,0.00021917,2]
[330803886,1719810653087,-500.5085334,0.00021917,4]
[330803887,1719810653097,-500.0,0.00021917,4]
[330803888,1719810653106,-500.0,0.00021917,4]
[330803889,1719810653115,-500.0,0.00021917,4]
[330803890,1719810653125,-500.91981232,0.00021917,4]
[330803891,1719810653134,-151.0,0.00021917,2]
[330803892,1719810653144,-500.0,0.00021917,4]
[330803893,1719810653153,-151.0,0.00021917,2]
[330803894,1719810653163,-561.32280067,0.00021917,4]
[330803895,1719810653173,-151.0,0.00021917,2]
[330803896,1719810653182,-500.0,0.00021917,4]
[330803897,1719810653191,-500.0,0.00021917,4]
[330803898,1719810653201,-500.0,0.00021917,4]
[330803899,1719810653210,-500.0,0.00021917,4]
[330803900,1719810653220,-500.0,0.00021917,4]
[330803901,1719810653229,-500.0,0.00021917,4]
[330803902,1719810653239,-151.0,0.00021917,2]
[330803903,1719810653249,-500.0,0.00021917,4]
[330803904,1719810653258,-501.84994838,0.00021917,4]
[330803905,1719810653269,-500.22083154,0.00021917,4]
[330803906,1719810653279,-500.0,0.00021917,4]
[330803907,1719810653288,-151.0,0.00021917,2]
[330803908,1719810653297,-500.0,0.00021917,4]
[330803909,1719810653307,-500.0,0.00021917,4]
[330803910,1719810653316,-500.0,0.00021917,4]
[330803911,1719810653326,-151.0,0.00021917,2]
[330803912,1719810653335,-500.0,0.00021917,4]
[330803913,1719810653345,-302.03001756,0.00021917,4]
[330803914,1719810653354,-151.0,0.00021917,2]
[330803915,1719810653363,-500.0,0.00021917,4]
[330803916,1719810653374,-500.0,0.00021917,4]
[330803917,1719810653383,-500.44080877,0.00021917,4]
[330803918,1719810653393,-500.0,0.00021917,4]
[330803919,1719810653403,-500.0,0.00021917,4]
[330803920,1719810653413,-500.0,0.00021917,4]
[330803921,1719810653423,-603.61451178,0.00021917,4]
[330803922,1719810653432,-500.0,0.00021917,4]
[330803923,1719810653442,-238.08,0.00021917,4]
[330803924,1719810653451,-500.0,0.00021917,4]
[330803925,1719810653461,-500.0,0.00021917,4]
[330803926,1719810653470,-602.30738733,0.00021917,4]
[330803927,1719810653479,-500.0,0.00021917,4]
[330803928,1719810653490,-500.0,0.00021917,4]
[330803929,1719810653499,-501.53552352,0.00021917,4]
[330803930,1719810653508,-501.83808203,0.00021917,4]
[330803931,1719810653521,-500.0,0.00021917,4]
[330803932,1719810653530,-500.0,0.00021917,4]
[330803933,1719810653543,-500.0,0.00021917,4]
[330803934,1719810653552,-500.0,0.00021917,4]
[330803935,1719810653561,-232.55286619,0.00021917,4]
[330803936,1719810653570,-500.0,0.00021917,4]
[330803937,1719810653579,-500.0,0.00021917,4]
[330803938,1719810653589,-500.0,0.00021917,4]
[330803939,1719810653598,-200.03490418,0.00021917,4]
[330803940,1719810653607,-500.0,0.00021917,4]
[330803941,1719810653617,-204.3698898,0.00021917,4]
[330803942,1719810653626,-501.08626096,0.00021917,4]
[330803943,1719810653636,-502.76903095,0.00021917,4]
[330803944,1719810653647,-500.0,0.00021917,4]
[330803945,1719810653656,-500.0,0.00021917,4]
[330803946,1719810653666,-502.00080676,0.00021917,4]
[330803947,1719810653676,-502.30176575,0.00021917,4]
[330803948,1719810653686,-500.0,0.00021917,4]
[330803949,1719810653695,-500.0,0.00021917,4]
[330803950,1719810653705,-500.0,0.00021917,4]
[330803951,1719810653714,-342.0,0.00021917,4]
[330803952,1719810653724,-501.12705938,0.00021917,4]
[330803953,1719810653733,-500.0,0.00021917,4]
[330803954,1719810653744,-501.77384286,0.00021917,4]
[330803955,1719810653753,-500.0,0.00021917,4]
[330803956,1719810653765,-501.95579572,0.00021917,4]
[330803957,1719810653775,-500.0,0.00021917,4]
[330803958,1719810653784,-500.0,0.00021917,4]
[330803959,1719810653793,-507.14896926,0.00021917,4]
[330803960,1719810653803,-500.0,0.00021917,4]
[330803961,1719810653813,-203.00863208,0.00021917,4]
[330803962,1719810653822,-500.0,0.00021917,4]
[330803963,1719810653832,-271.11038274,0.00021917,4]
[330803964,1719810653841,-500.0,0.00021917,4]
[330803965,1719810653852,-500.0,0.00021917,4]
[330803966,1719810653861,-500.0,0.00021917,4]
[330803967,1719810653872,-500.0,0.00021917,4]
[330803968,1719810653881,-500.0,0.00021917,4]
[330803969,1719810653891,-500.0,0.00021917,4]
[330803970,1719810653900,-500.0,0.00021917,4]
[330803971,1719810653909,-500.0,0.00021917,4]
[330803972,1719810653919,-500.73190353,0.00021917,4]
[330803973,1719810653929,-500.0,0.00021917,4]
[330803974,1719810653938,-500.0,0.00021917,4]
[330803975,1719810653949,-500.0,0.00021917,4]
[330803976,1719810653959,-501.72432469,0.00021917,4]
[330803977,1719810653973,-500.0,0.00021917,4]
[330803978,1719810653982,-500.0,0.00021917,4]
[330803979,1719810653992,-349.79930985,0.00021917,4]
[330803980,1719810654003,-500.0,0.00021917,4]
[330803981,1719810654012,-500.0,0.00021917,4]
[330803982,1719810654030,-444.06599247,0.00021917,4]
[330803983,1719810654040,-500.0,0.00021917,4]
[330803984,1719810654051,-500.0,0.00021917,4]
[330803985,1719810654061,-260.47344422,0.00021917,4]
[330803986,1719810654071,-501.58339769,0.00021917,4]
[330803987,1719810654080,-500.0,0.00021917,4]
[330803988,1719810654090,-501.54707312,0.00021917,4]
[330803989,1719810654099,-500.0,0.00021917,4]
[330803990,1719810654108,-500.0,0.00021917,4]
[330803991,1719810654118,-500.0,0.00021917,4]
[330803992,1719810654127,-500.0,0.00021917,4]
[330803993,1719810654137,-546.70992122,0.00021917,4]
[330803994,1719810654146,-500.0,0.00021917,4]
[330803995,1719810654155,-339.61162019,0.00021917,4]
[330803996,1719810654165,-500.35564687,0.00021917,4]
[330803997,1719810654175,-435.7,0.00021917,4]
[330803998,1719810654184,-151.0,0.00021917,2]
[330803999,1719810654194,-500.0,0.00021917,4]
[330804000,1719810654204,-151.0,0.00021917,2]
[330804001,1719810654214,-500.65857775,0.00021917,4]
[330804002,1719810654223,-151.0,0.00021917,2]
[330804003,1719810654232,-151.0,0.00021917,2]
[330804004,1719810654242,-500.0,0.00021917,4]
[330804005,1719810654251,-500.0,0.00021917,4]
[330804006,1719810654261,-500.0,0.00021917,4]
[330804007,1719810654273,-500.0,0.00021917,4]
[330804008,1719810654283,-500.0,0.00021917,4]
[330804009,1719810654293,-275.50995502,0.00021917,4]
[330804010,1719810654302,-500.0,0.00021917,4]
[330804011,1719810654312,-461.18427857,0.00021917,4]
[330804012,1719810654321,-500.0,0.00021917,4]
[330804013,1719810654331,-500.0,0.00021917,4]
[330804014,1719810654340,-500.0,0.00021917,4]
[330804015,1719810654350,-500.46365535,0.00021917,4]
[330804016,1719810654360,-500.0,0.00021917,4]
[330804017,1719810654370,-500.96604297,0.00021917,4]
[330804018,1719810654381,-359.15056039,0.00021917,4]
[330804019,1719810654390,-151.0,0.00021917,2]
[330804020,1719810654400,-500.0,0.00021917,4]
[330804021,1719810654410,-501.6310424,0.00021917,4]
[330804022,1719810654419,-500.0,0.00021917,4]
[330804023,1719810654428,-502.23654865,0.00021917,4]
[330804024,1719810654438,-500.0,0.00021917,4]
[330804025,1719810654447,-500.0,0.00021917,4]
[330804026,1719810654456,-500.0,0.00021917,4]
[330804027,1719810654465,-151.0,0.00021917,2]
[330804028,1719810654475,-500.0,0.00021917,4]
[330804029,1719810654484,-161.273106,0.00021917,2]
[330804030,1719810654493,-500.0,0.00021917,4]
[330804031,1719810654503,-500.67524631,0.00021917,4]
[330804032,1719810654512,-500.0,0.00021917,4]
[330804033,1719810654522,-178.03400342,0.00021917,4]
[330804034,1719810654531,-500.0,0.00021917,4]
[330804035,1719810654541,-500.0,0.00021917,4]
[330804036,1719810654551,-500.0,0.00021917,4]
[330804037,1719810654560,-500.66309311,0.00021917,4]
[330804038,1719810654570,-500.0,0.00021917,4]
[330804039,1719810654579,-500.0,0.00021917,4]
[330804040,1719810654588,-643.69090572,0.00021917,4]
[330804041,1719810654598,-500.0,0.00021917,4]
[330804042,1719810654607,-493.58184155,0.00021917,4]
[330804043,1719810654617,-501.25126784,0.00021917,4]
[330804044,1719810654626,-500.0,0.00021917,4]
[330804045,1719810654636,-500.0,0.00021917,4]
[330804046,1719810654645,-500.0,0.00021917,4]
[330804047,1719810654654,-500.0,0.00021917,4]
[330804048,1719810654663,-501.59019784,0.00021917,4]
[330804049,1719810654673,-500.0,0.00021917,4]
[330804050,1719810654682,-500.0,0.00021917,4]
[330804051,1719810654691,-500.0,0.00021917,4]
[330804052,1719810654701,-500.0,0.00021917,4]
[330804053,1719810654710,-500.0,0.00021917,4]
[330804054,1719810654720,-399.9334925,0.00021917,4]
[330804055,1719810654730,-500.0,0.00021917,4]
[330804056,1719810654739,-503.60953577,0.00021917,4]
[330804057,1719810654748,-502.8132842,0.00021917,4]
[330804058,1719810654758,-500.0,0.00021917,4]
[330804059,1719810654768,-500.0,0.00021917,4]
[330804060,1719810654777,-482.65463354,0.00021917,4]
[330804061,1719810654786,-502.06353833,0.00021917,4]
[330804062,1719810654795,-500.22766873,0.00021917,4]
[330804063,1719810654804,-500.0,0.00021917,4]
[330804064,1719810654814,-501.20680938,0.00021917,4]
[330804065,1719810654823,-500.0,0.00021917,4]
[330804066,1719810654832,-532.73641148,0.00021917,4]
[330804067,1719810654841,-500.0,0.00021917,4]
[330804068,1719810654850,-500.35531616,0.00021917,4]
[330804069,1719810654860,-504.21715666,0.00021917,4]
[330804070,1719810654869,-500.0,0.00021917,4]
[330804071,1719810654879,-500.0,0.00021917,4]
[330804072,1719810654888,-274.42470533,0.00021917,4]
[330804073,1719810654897,-504.88142655,0.00021917,4]
[330804074,1719810654907,-500.0,0.00021917,4]
[330804075,1719810654916,-501.09851983,0.00021917,4]
[330804076,1719810654925,-500.0,0.00021917,4]
[330804077,1719810654934,-500.0,0.00021917,4]
[330804078,1719810654944,-534.88816769,0.00021917,4]
[330804079,1719810654953,-597.47446928,0.00021917,4]
[330804080,1719810654965,-503.76807461,0.00021917,4]
[330804081,1719810654975,-500.0,0.00021917,4]
[330804082,1719810654984,-351.13456319,0.00021917,4]
[330804083,1719810654994,-500.0,0.00021917,4]
[330804084,1719810655004,-501.61334125,0.00021917,4]
[330804085,1719810655013,-500.0,0.00021917,4]
[330804086,1719810655023,-503.24210256,0.00021917,4]
[330804087,1719810655032,-576.96848434,0.00021917,4]
[330804088,1719810655044,-500.0,0.00021917,4]
[330804089,1719810655054,-500.0,0.00021917,4]
[330804090,1719810655065,-500.0,0.00021917,4]
[330804091,1719810655074,-500.0,0.00021917,4]
[330804092,1719810655084,-500.0,0.00021917,4]
[330804093,1719810655093,-337.39591883,0.00021917,4]
[330804094,1719810655102,-500.0,0.00021917,4]
[330804095,1719810655112,-500.0,0.00021917,4]
[330804096,1719810655121,-500.0,0.00021917,4]
[330804097,1719810655131,-500.0,0.00021917,4]
[330804098,1719810655141,-500.0,0.00021917,4]
[330804099,1719810655151,-505.51133878,0.00021917,4]
[330804100,1719810655160,-500.0,0.00021917,4]
[330804101,1719810655172,-500.0,0.00021917,4]
[330804102,1719810655182,-500.0,0.00021917,4]
[330804103,1719810655191,-420.28825682,0.00021917,4]
[330804104,1719810655201,-151.0,0.00021917,2]
[330804105,1719810655210,-151.0,0.00021917,2]
[330804106,1719810655220,-151.0,0.00021917,2]
[330804107,1719810655229,-500.0,0.00021917,4]
[330804108,1719810655239,-500.0,0.00021917,4]
[330804109,1719810655248,-502.41419652,0.00021917,4]
[330804110,1719810655258,-500.0,0.00021917,4]
[330804111,1719810655268,-151.0,0.00021917,2]
[330804112,1719810655278,-500.0,0.00021917,4]
[330804113,1719810655287,-500.0,0.00021917,4]
[330804114,1719810655297,-640.55444366,0.00021917,4]
[330804115,1719810655306,-500.0,0.00021917,4]
[330804116,1719810655315,-500.0,0.00021917,4]
[330804117,1719810655324,-610.34065954,0.00021917,4]
[330804118,1719810655334,-500.0,0.00021917,4]
[330804119,1719810655343,-500.0,0.00021917,4]
[330804120,1719810655352,-500.0,0.00021917,4]
[330804121,1719810655362,-500.0,0.00021917,4]
[330804122,1719810655371,-419.94753339,0.00021917,4]
[330804123,1719810655381,-500.0,0.00021917,4]
[330804124,1719810655390,-500.0,0.00021917,4]
[330804125,1719810655400,-500.0,0.00021917,4]
[330804126,1719810655409,-500.0,0.00021917,4]
[330804127,1719810655420,-500.0,0.00021917,4]
[330804128,1719810655429,-500.0,0.00021917,4]
[330804129,1719810655439,-500.0,0.00021917,4]
[330804130,1719810655449,-500.61889276,0.00021917,4]
[330804131,1719810655458,-500.0,0.00021917,4]
[330804132,1719810655468,-606.47284797,0.00021917,4]
[330804133,1719810655477,-351.37240898,0.00021917,4]
[330804134,1719810655487,-500.0,0.00021917,4]
[330804135,1719810655496,-268.586561,0.00021917,2]
[330804136,1719810655506,-227.812342,0.00021917,4]
[330804137,1719810655515,-20025.25407779,0.00021917,2]
[330804138,1719810655525,-268.586561,0.00021917,2]
[330804139,1719810655534,-500.0,0.00021917,4]
[330804140,1719810655544,-504.90891905,0.00021917,4]
[330804141,1719810655553,-501.52672225,0.00021917,4]
[330804142,1719810655562,-500.0,0.00021917,4]
[330804143,1719810655572,-188.49,0.00021917,4]
[330804144,1719810655581,-500.0,0.00021917,4]
[330804145,1719810655590,-500.0,0.00021917,4]
[330804146,1719810655600,-500.0,0.00021917,4]
[330804147,1719810655609,-269.042966,0.00021917,2]
[330804148,1719810655618,-500.30314737,0.00021917,4]
[330804149,1719810655628,-269.042966,0.00021917,2]
[330804150,1719810655800,-500.0,0.00021917,4]
[330804151,1719810655810,-269.042966,0.00021917,2]
[330804152,1719810655819,-269.042966,0.00021917,2]
[330804153,1719810655829,-268.586561,0.00021917,2]
[330804154,1719810655838,-505.4925496,0.00021917,4]
[330804155,1719810655848,-268.586561,0.00021917,2]
[330804156,1719810655857,-519.46164118,0.00021917,4]
[330804157,1719810655867,-301.18063331,0.00021917,4]
[330804158,1719810655877,-268.586561,0.00021917,2]
[330804159,1719810655886,-500.0,0.00021917,4]
[330804160,1719810655895,-268.586561,0.00021917,2]
[330804161,1719810655904,-500.0,0.00021917,4]
[330804162,1719810655914,-500.0,0.00021917,4]
[330804163,1719810655924,-500.0,0.00021917,4]
[330804164,1719810655933,-500.0,0.00021917,4]
[330804165,1719810655942,-500.0,0.00021917,4]
[330804166,1719810655952,-500.0,0.00021917,4]
[330804167,1719810655965,-151.0,0.00021917,2]
[330804168,1719810655974,-500.0,0.00021917,4]
[330804169,1719810655984,-507.05903476,0.00021917,4]
[330804170,1719810655993,-500.0,0.00021917,4]
[330804171,1719810656003,-151.0,0.00021917,2]
[330804172,1719810656012,-500.0,0.00021917,4]
[330804173,1719810656023,-500.0,0.00021917,4]
[330804174,1719810656032,-269.042966,0.00021917,2]
[330804175,1719810656042,-151.0,0.00021917,2]
[330804176,1719810656051,-565.3553272,0.00021917,4]
[330804177,1719810656061,-500.7646095,0.00021917,4]
[330804178,1719810656070,-235.66,0.00021917,4]
[330804179,1719810656079,-269.042966,0.00021917,2]
[330804180,1719810656088,-160.684638,0.00021917,2]
[330804181,1719810656098,-269.042966,0.00021917,2]
[330804182,1719810656107,-269.042966,0.00021917,2]
[330804183,1719810656117,-500.0,0.00021917,4]
[330804184,1719810656126,-500.0,0.00021917,4]
[330804185,1719810656136,-500.0,0.00021917,4]
[330804186,1719810656145,-174.73,0.00021917,4]
[330804187,1719810656155,-500.0,0.00021917,4]
[330804188,1719810656165,-500.0,0.00021917,4]
[330804189,1719810656174,-499.99738383,0.00021917,4]
[330804190,1719810656183,-500.0,0.00021917,4]
[330804191,1719810656192,-500.0,0.00021917,4]
[330804192,1719810656202,-501.07249763,0.00021917,4]
[330804193,1719810656211,-500.0,0.00021917,4]
[330804194,1719810656220,-500.0,0.00021917,4]
[330804195,1719810656229,-615.45,0.00021917,4]
[330804196,1719810656239,-500.0,0.00021917,4]
[330804197,1719810656248,-500.0,0.00021917,4]
[330804198,1719810656257,-500.0,0.00021917,4]
[330804199,1719810656267,-500.0,0.00021917,4]
[330804200,1719810656276,-222.33181358,0.00021917,4]
[330804201,1719810656285,-314.8185145,0.00021917,4]
[330804202,1719810656296,-502.45871124,0.00021917,4]
[330804203,1719810656305,-500.0,0.00021917,4]
[330804204,1719810656314,-452.65863881,0.00021917,4]
[330804205,1719810656324,-218.32,0.00021917,4]
[330804206,1719810656333,-500.0,0.00021917,4]
[330804207,1719810656342,-315.55019352,0.00021917,4]
[330804208,1719810656352,-500.0,0.00021917,4]
[330804209,1719810656362,-500.0,0.00021917,4]
[330804210,1719810656372,-500.0,0.00021917,4]
[330804211,1719810656381,-571.77522798,0.00021917,4]
[330804212,1719810656390,-500.0,0.00021917,4]
[330804213,1719810656399,-162.45043679,0.00021917,4]
[330804214,1719810656408,-500.27309805,0.00021917,4]
[330804215,1719810656417,-548.58,0.00021917,4]
[330804216,1719810656427,-500.0,0.00021917,4]
[330804217,1719810656436,-500.5288953,0.00021917,4]
[330804218,1719810656445,-500.0,0.00021917,4]
[330804219,1719810656455,-500.0,0.00021917,4]
[330804220,1719810656464,-286.29088054,0.00021917,4]
[330804221,1719810656473,-502.56138857,0.00021917,4]
[330804222,1719810656482,-223.57439943,0.00021917,4]
[330804223,1719810656491,-151.0,0.00021917,2]
[330804224,1719810656502,-151.0,0.00021917,2]
[330804225,1719810656511,-151.0,0.00021917,2]
[330804226,1719810656521,-151.0,0.00021917,2]
[330804227,1719810656530,-500.14973559,0.00021917,4]
[330804228,1719810656539,-506.26422115,0.00021917,4]
[330804229,1719810656548,-500.0,0.00021917,4]
[330804230,1719810656558,-500.0,0.00021917,4]
[330804231,1719810656567,-501.53355388,0.00021917,4]
[330804232,1719810656577,-500.0,0.00021917,4]
[330804233,1719810656587,-584.65,0.00021917,4]
[330804234,1719810656596,-500.0,0.00021917,4]
[330804235,1719810656605,-500.0,0.00021917,4]
[330804236,1719810656614,-500.0,0.00021917,4]
[330804237,1719810656623,-215.48242454,0.00021917,4]